Workbook

Sheet СБР
A1: АНАЛИЗ ИСПОЛНЕНИЯ СВОДНОЙ БЮДЖЕТНОЙ РОСПИСИ БЮДЖЕТА ГОРОДСКОГО ОКРУГА "ГОРОД ФОКИНО" (РАСХОДЫ) на 01.08.2013г.
N2: руб. | P2: руб.
A3: наименование | B3: Вед. | C3: Разд. | D3: Ц.ст. | E3: Расх. | F3: Эк.класс. | G3: План на 2013 год | H3: Факт за 2012 год | I3: % исполнения | J3: План на 2013 год | K3: Факт за 2012 год | L3: % исполнения | M3: План на 2012 год | N3: Факт за 2012 год | O3: % исполнения | P3: Факт на 01.08.2013г. | Q3: % исполнения
A4: Совет народных депутатов города Фокино | B4: 001 | C4: 0000 | D4: 0000000 | E4: 000 | F4: 000 | J4: =J5 -> 846964 | K4: 570000 | L4: 0 | M4: 570000 | N4: 0 | O4: 570000 | P4: =P5 -> 339610.53 | Q4: =P4/J4*100 -> 40.09739847
A5: ОБЩЕГОСУДАРСТВЕННЫЕ ВОПРОСЫ | B5: 001 | C5: 0100 | D5: 0000000 | E5: 000 | F5: 000 | J5: =J6+J30 -> 846964 | K5: 570000 | L5: 0 | M5: 570000 | N5: 0 | O5: 570000 | P5: =P6+P30 -> 339610.53 | Q5: =P5/J5*100 -> 40.09739847
A6: Функционирование законодательных (представительных) органов государственной власти и представительных органов муниципальных образований | B6: 001 | C6: 0103 | D6: 0000000 | E6: 000 | F6: 000 | J6: =J7+J26 -> 839964 | K6: =K7+K26 -> 563000 | L6: 0 | M6: 563000 | N6: 0 | O6: 563000 | P6: 339610.53 | Q6: 40.43155778
A7: Центральный аппарат | B7: 001 | C7: 0103 | D7: 0020400 | E7: 000 | F7: 000 | J7: =J8+J13+J20+J23 -> 563000 | K7: 563000 | L7: 0 | M7: 563000 | N7: 0 | O7: 563000 | P7: =P8+P13+P20+P23 -> 339610.53 | Q7: 60.32158615
A8: Расходы на выплаты персоналу государственных (муниципальных) органов | B8: 001 | C8: 0103 | D8: 0020400 | E8: 120 | F8: 000 | J8: =J9+J11 -> 352000 | K8: 352000 | L8: 0 | M8: 352000 | N8: 0 | O8: 352000 | P8: =P9+P11 -> 254178.53 | Q8: 72.20980966
A9: Заработная плата | B9: 001 | C9: 0103 | D9: 0020400 | E9: 120 | F9: 211 | J9: 270353 | K9: 270353 | L9: 0 | M9: 270353 | N9: 0 | O9: 270353 | P9: 207207.93 | Q9: 76.64347353
B10: 001 | C10: 0103 | D10: 0020400 | E10: 120 | F10: 211 | J10: 270353 | K10: 270353 | L10: 0 | M10: 270353 | N10: 0 | O10: 270353 | Q10: 0
A11: Начисления на выплаты по оплате труда | B11: 001 | C11: 0103 | D11: 0020400 | E11: 120 | F11: 213 | J11: 81647 | K11: 81647 | L11: 0 | M11: 81647 | N11: 0 | O11: 81647 | P11: 46970.6 | Q11: 57.5288743
B12: 001 | C12: 0103 | D12: 0020400 | E12: 120 | F12: 213 | J12: 81647 | K12: 81647 | L12: 0 | M12: 81647 | N12: 0 | O12: 81647 | P12: 81647 | Q12: 100
A13: Иные закупки товаров, работ и услуг для государственных(муниципальных) нужд | B13: 001 | C13: 0103 | D13: 0020400 | E13: 240 | F13: 000 | J13: =J14+J16+J18 -> 209000 | K13: 209000 | L13: 0 | M13: 209000 | N13: 0 | O13: 209000 | P13: =P14+P16+P18 -> 85332 | Q13: 40.82870813
A14: Услуги связи | B14: 001 | C14: 0103 | D14: 0020400 | E14: 240 | F14: 221 | J14: 12000 | K14: 12000 | L14: 0 | M14: 12000 | N14: 0 | O14: 12000 | P14: 7000 | Q14: 58.33333333
B15: 001 | C15: 0103 | D15: 0020400 | E15: 240 | F15: 221 | J15: 12000 | K15: 12000 | L15: 0 | M15: 12000 | N15: 0 | O15: 12000 | Q15: 0
A16: Прочие работы, услуги | B16: 001 | C16: 0103 | D16: 0020400 | E16: 240 | F16: 226 | J16: 177000 | K16: 177000 | L16: 0 | M16: 177000 | N16: 0 | O16: 177000 | P16: 69832 | Q16: 39.45310734
B17: 001 | C17: 0103 | D17: 0020400 | E17: 240 | F17: 226 | J17: 177000 | K17: 177000 | L17: 0 | M17: 177000 | N17: 0 | O17: 177000 | Q17: 0
A18: Увеличение стоимости материальных запасов | B18: 001 | C18: 0103 | D18: 0020400 | E18: 240 | F18: 340 | J18: 20000 | K18: 20000 | L18: 0 | M18: 20000 | N18: 0 | O18: 20000 | P18: 8500 | Q18: 42.5
B19: 001 | C19: 0103 | D19: 0020400 | E19: 240 | F19: 340 | J19: 20000 | K19: 20000 | L19: 0 | M19: 20000 | N19: 0 | O19: 20000 | P19: 20000 | Q19: 100
A20: Уплата налога на имущество организаций и земельного налога | B20: 001 | C20: 0103 | D20: 0020400 | E20: 851 | F20: 000 | J20: =J21 -> 1000 | K20: 1000 | L20: 0 | M20: 1000 | N20: 0 | O20: 1000 | P20: =P21 -> 0 | Q20: 0
A21: Прочие расходы | B21: 001 | C21: 0103 | D21: 0020400 | E21: 851 | F21: 290 | J21: 1000 | K21: 1000 | L21: 0 | M21: 1000 | N21: 0 | O21: 1000 | P21: 0 | Q21: 0
B22: 001 | C22: 0103 | D22: 0020400 | E22: 851 | F22: 290 | J22: 1000 | K22: 1000 | L22: 0 | M22: 1000 | N22: 0 | O22: 1000 | P22: 1000 | Q22: 100
A23: Уплата прочих налогов, сборов и иных платежей | B23: 001 | C23: 0103 | D23: 0020400 | E23: 852 | F23: 000 | J23: =J24 -> 1000 | K23: 1000 | L23: 0 | M23: 1000 | N23: 0 | O23: 1000 | P23: =P24 -> 100 | Q23: 10
A24: Прочие расходы | B24: 001 | C24: 0103 | D24: 0020400 | E24: 852 | F24: 290 | J24: 1000 | K24: 1000 | L24: 0 | M24: 1000 | N24: 0 | O24: 1000 | P24: 100 | Q24: 10
B25: 001 | C25: 0103 | D25: 0020400 | E25: 852 | F25: 290 | J25: 1000 | K25: 1000 | L25: 0 | M25: 1000 | N25: 0 | O25: 1000 | P25: 1000 | Q25: 100
A26: Председатель представительного органа муниципального образования | B26: 001 | C26: 0103 | D26: 0021100 | E26: 000 | F26: 000 | J26: =J27 -> 276964 | K26: =K27 -> 0 | L26: 0 | M26: 0 | N26: 0 | O26: 0 | P26: 0 | Q26: 0
A27: Расходы на выплаты персоналу государственных (муниципальных) органов | B27: 001 | C27: 0103 | D27: 0021100 | E27: 120 | F27: 000 | J27: =J28+J29 -> 276964 | K27: =K28+K29 -> 0 | L27: 0 | M27: 0 | N27: 0 | O27: 0 | P27: 0 | Q27: 0
A28: Заработная плата | B28: 001 | C28: 0103 | D28: 0021100 | E28: 120 | F28: 211 | J28: 212722 | P28: 0 | Q28: 0
A29: Начисления на выплаты по оплате труда | B29: 001 | C29: 0103 | D29: 0021100 | E29: 120 | F29: 213 | J29: 64242 | P29: 0 | Q29: 0
A30: Другие общегосударственные вопросы | B30: 001 | C30: 0113 | D30: 0000000 | E30: 000 | F30: 000 | J30: =J31 -> 7000 | K30: 7000 | L30: 0 | M30: 7000 | N30: 0 | O30: 7000 | P30: =P31 -> 0 | Q30: 0
A31: Долгосрочнаяя целевая программа "Развитие информационного обеспечения " | B31: 001 | C31: 0113 | D31: 7952200 | E31: 000 | F31: 000 | J31: =J32 -> 7000 | K31: 7000 | L31: 0 | M31: 7000 | N31: 0 | O31: 7000 | P31: =P32 -> 0 | Q31: 0
A32: Иные закупки товаров, работ и услуг для государственных(муниципальных) нужд | B32: 001 | C32: 0113 | D32: 7952200 | E32: 240 | F32: 000 | J32: =J33+J35+J37 -> 7000 | K32: 7000 | L32: 0 | M32: 7000 | N32: 0 | O32: 7000 | P32: =P33+P35+P37 -> 0 | Q32: 0
A33: Работы, услуги по содержанию имущества | B33: 001 | C33: 0113 | D33: 7952200 | E33: 240 | F33: 225 | J33: 3000 | K33: 3000 | L33: 0 | M33: 3000 | N33: 0 | O33: 3000 | P33: 0 | Q33: 0
B34: 001 | C34: 0113 | D34: 7952200 | E34: 240 | F34: 225 | J34: 3000 | K34: 3000 | L34: 0 | M34: 3000 | N34: 0 | O34: 3000 | Q34: 0
A35: Прочие работы, услуги | B35: 001 | C35: 0113 | D35: 7952200 | E35: 240 | F35: 226 | J35: 2000 | K35: 2000 | L35: 0 | M35: 2000 | N35: 0 | O35: 2000 | P35: 0 | Q35: 0
B36: 001 | C36: 0113 | D36: 7952200 | E36: 240 | F36: 226 | J36: 2000 | K36: 2000 | L36: 0 | M36: 2000 | N36: 0 | O36: 2000 | Q36: 0
A37: Увеличение стоимости основных средств | B37: 001 | C37: 0113 | D37: 7952200 | E37: 240 | F37: 310 | J37: 2000 | K37: 2000 | L37: 0 | M37: 2000 | N37: 0 | O37: 2000 | P37: 0 | Q37: 0
B38: 001 | C38: 0113 | D38: 7952200 | E38: 240 | F38: 310 | J38: 2000 | K38: 2000 | L38: 0 | M38: 2000 | N38: 0 | O38: 2000 | P38: 2000 | Q38: 100
A39: Администрация города Фокино | B39: 002 | C39: 0000 | D39: 0000000 | E39: 000 | F39: 000 | J39: =J40+J117+J123+J140+J192+J233+J278+J288+J350+J356 -> 140818313 | K39: 136468607.6 | L39: 0 | M39: 136468607.6 | N39: 0 | O39: 136468607.6 | P39: =P40+P117+P123+P140+P192+P233+P278+P288+P350+P356 -> 86289152.21 | Q39: 61.27693931
A40: ОБЩЕГОСУДАРСТВЕННЫЕ ВОПРОСЫ | B40: 002 | C40: 0100 | D40: 0000000 | E40: 000 | F40: 000 | J40: =J41+J81+J86+J77 -> 9474309 | K40: =K41+K81+K86+K77 -> 9157057 | L40: 0 | M40: 9157057 | N40: 0 | O40: 9157057 | P40: 5990788.05 | Q40: 63.23192594
A41: Функционирование Правительства Российской Федерации, высших исполнительных органов государственной власти субъектов Российской Федерации, местных администраций | B41: 002 | C41: 0104 | D41: 0000000 | E41: 000 | F41: 000 | J41: =J42+J71 -> 8497452 | K41: 7763200 | L41: 0 | M41: 7763200 | N41: 0 | O41: 7763200 | P41: =P42+P71 -> 5485430.41 | Q41: 64.55382637
A42: Центральный аппарат | B42: 002 | C42: 0104 | D42: 0020400 | E42: 000 | F42: 000 | J42: =J43+J50+J65+J68 -> 7552200 | K42: 7037200 | L42: 0 | M42: 7037200 | N42: 0 | O42: 7037200 | P42: =P43+P50+P65+P68 -> 4867897.98 | Q42: 64.45668785
A43: Расходы на выплаты персоналу государственных (муниципальных) органов | B43: 002 | C43: 0104 | D43: 0020400 | E43: 120 | F43: 000 | J43: =J44+J46+J48 -> 6294000 | K43: 5900000 | L43: 0 | M43: 5900000 | N43: 0 | O43: 5900000 | P43: =P44+P46+P48 -> 3803660.92 | Q43: 60.43312552
A44: Заработная плата | B44: 002 | C44: 0104 | D44: 0020400 | E44: 120 | F44: 211 | J44: =4528802+394000 -> 4922802 | K44: 4528802 | L44: 0 | M44: 4528802 | N44: 0 | O44: 4528802 | P44: 2968815.53 | Q44: 60.30743325
B45: 002 | C45: 0104 | D45: 0020400 | E45: 120 | F45: 211 | J45: 4528802 | K45: 4528802 | L45: 0 | M45: 4528802 | N45: 0 | O45: 4528802 | Q45: 0
A46: Прочие выплаты | B46: 002 | C46: 0104 | D46: 0020400 | E46: 120 | F46: 212 | J46: 3500 | K46: 3500 | L46: 0 | M46: 3500 | N46: 0 | O46: 3500 | P46: 996.77 | Q46: 28.47914286
B47: 002 | C47: 0104 | D47: 0020400 | E47: 120 | F47: 212 | J47: 3500 | K47: 3500 | L47: 0 | M47: 3500 | N47: 0 | O47: 3500 | Q47: 0
A48: Начисления на выплаты по оплате труда | B48: 002 | C48: 0104 | D48: 0020400 | E48: 120 | F48: 213 | J48: 1367698 | K48: 1367698 | L48: 0 | M48: 1367698 | N48: 0 | O48: 1367698 | P48: 833848.62 | Q48: 60.96730565
B49: 002 | C49: 0104 | D49: 0020400 | E49: 120 | F49: 213 | J49: 1367698 | K49: 1367698 | L49: 0 | M49: 1367698 | N49: 0 | O49: 1367698 | P49: 1367698 | Q49: 100
A50: Иные закупки товаров, работ и услуг для государственных(муниципальных) нужд | B50: 002 | C50: 0104 | D50: 0020400 | E50: 240 | F50: 000 | J50: =J51+J53+J55+J57+J59+J61+J63 -> 1153200 | K50: 1032200 | L50: 0 | M50: 1032200 | N50: 0 | O50: 1032200 | P50: =P51+P53+P55+P57+P59+P61+P63 -> 971980.87 | Q50: 84.28554197
A51: Услуги связи | B51: 002 | C51: 0104 | D51: 0020400 | E51: 240 | F51: 221 | J51: 180000 | K51: 180000 | L51: 0 | M51: 180000 | N51: 0 | O51: 180000 | P51: 131746.83 | Q51: 73.19268333
B52: 002 | C52: 0104 | D52: 0020400 | E52: 240 | F52: 221 | J52: 180000 | K52: 180000 | L52: 0 | M52: 180000 | N52: 0 | O52: 180000 | Q52: 0
A53: Коммунальные услуги | B53: 002 | C53: 0104 | D53: 0020400 | E53: 240 | F53: 223 | J53: =555000+121000 -> 676000 | K53: 500000 | L53: 0 | M53: 500000 | N53: 0 | O53: 500000 | P53: 672323.66 | Q53: 99.45616272
B54: 002 | C54: 0104 | D54: 0020400 | E54: 240 | F54: 223 | J54: 500000 | K54: 500000 | L54: 0 | M54: 500000 | N54: 0 | O54: 500000 | Q54: 0
A55: Работы, услуги по содержанию имущества | B55: 002 | C55: 0104 | D55: 0020400 | E55: 240 | F55: 225 | J55: 32000 | K55: 47000 | L55: 0 | M55: 47000 | N55: 0 | O55: 47000 | P55: 15628.26 | Q55: 48.8383125
B56: 002 | C56: 0104 | D56: 0020400 | E56: 240 | F56: 225 | J56: 47000 | K56: 47000 | L56: 0 | M56: 47000 | N56: 0 | O56: 47000 | Q56: 0
A57: Прочие работы, услуги | B57: 002 | C57: 0104 | D57: 0020400 | E57: 240 | F57: 226 | J57: 50000 | K57: 70000 | L57: 0 | M57: 70000 | N57: 0 | O57: 70000 | P57: 31602.54 | Q57: 63.20508
B58: 002 | C58: 0104 | D58: 0020400 | E58: 240 | F58: 226 | J58: 70000 | K58: 70000 | L58: 0 | M58: 70000 | N58: 0 | O58: 70000 | Q58: 0
A59: Прочие расходы | B59: 002 | C59: 0104 | D59: 0020400 | E59: 240 | F59: 290 | J59: 10000 | K59: 10000 | L59: 0 | M59: 10000 | N59: 0 | O59: 10000 | P59: 0 | Q59: 0
B60: 002 | C60: 0104 | D60: 0020400 | E60: 240 | F60: 290 | J60: 10000 | K60: 10000 | L60: 0 | M60: 10000 | N60: 0 | O60: 10000 | Q60: 0
A61: Увеличение стоимости основных средств | B61: 002 | C61: 0104 | D61: 0020400 | E61: 240 | F61: 310 | J61: 10000 | K61: 10000 | L61: 0 | M61: 10000 | N61: 0 | O61: 10000 | P61: 1303.16 | Q61: 13.0316
B62: 002 | C62: 0104 | D62: 0020400 | E62: 240 | F62: 310 | J62: 10000 | K62: 10000 | L62: 0 | M62: 10000 | N62: 0 | O62: 10000 | Q62: 0
A63: Увеличение стоимости материальных запасов | B63: 002 | C63: 0104 | D63: 0020400 | E63: 240 | F63: 340 | J63: 195200 | K63: 215200 | L63: 0 | M63: 215200 | N63: 0 | O63: 215200 | P63: 119376.42 | Q63: 61.15595287
B64: 002 | C64: 0104 | D64: 0020400 | E64: 240 | F64: 340 | J64: 215200 | K64: 215200 | L64: 0 | M64: 215200 | N64: 0 | O64: 215200 | P64: 215200 | Q64: 100
A65: Уплата налога на имущество организаций и земельного налога | B65: 002 | C65: 0104 | D65: 0020400 | E65: 851 | F65: 000 | J65: =J66 -> 70000 | K65: 70000 | L65: 0 | M65: 70000 | N65: 0 | O65: 70000 | P65: =P66 -> 64123 | Q65: 91.60428571
A66: Прочие расходы | B66: 002 | C66: 0104 | D66: 0020400 | E66: 851 | F66: 290 | J66: 70000 | K66: 70000 | L66: 0 | M66: 70000 | N66: 0 | O66: 70000 | P66: 64123 | Q66: 91.60428571
B67: 002 | C67: 0104 | D67: 0020400 | E67: 851 | F67: 290 | J67: 70000 | K67: 70000 | L67: 0 | M67: 70000 | N67: 0 | O67: 70000 | P67: 70000 | Q67: 100
A68: Уплата прочих налогов, сборов и иных платежей | B68: 002 | C68: 0104 | D68: 0020400 | E68: 852 | F68: 000 | J68: =J69 -> 35000 | K68: 35000 | L68: 0 | M68: 35000 | N68: 0 | O68: 35000 | P68: =P69 -> 28133.19 | Q68: 80.38054286
A69: Прочие расходы | B69: 002 | C69: 0104 | D69: 0020400 | E69: 852 | F69: 290 | J69: 35000 | K69: 35000 | L69: 0 | M69: 35000 | N69: 0 | O69: 35000 | P69: 28133.19 | Q69: =P69/J69*100 -> 80.38054286
B70: 002 | C70: 0104 | D70: 0020400 | E70: 852 | F70: 290 | J70: 35000 | K70: 35000 | L70: 0 | M70: 35000 | N70: 0 | O70: 35000 | P70: 35000 | Q70: 100
A71: Глава местной администрации (исполнительно-распорядительного органа муниципального образования) | B71: 002 | C71: 0104 | D71: 0020800 | E71: 000 | F71: 000 | J71: =J72 -> 945252 | K71: 726000 | L71: 0 | M71: 726000 | N71: 0 | O71: 726000 | P71: =P72 -> 617532.43 | Q71: 65.32992578
A72: Расходы на выплаты персоналу государственных (муниципальных) органов | B72: 002 | C72: 0104 | D72: 0020800 | E72: 120 | F72: 000 | J72: =J73+J75 -> 945252 | K72: 726000 | L72: 0 | M72: 726000 | N72: 0 | O72: 726000 | P72: =P73+P75 -> 617532.43 | Q72: 65.32992578
A73: Заработная плата | B73: 002 | C73: 0104 | D73: 0020800 | E73: 120 | F73: 211 | J73: =506748+219252 -> 726000 | K73: 506748 | L73: 0 | M73: 506748 | N73: 0 | O73: 506748 | P73: 517477.37 | Q73: 71.27787466
B74: 002 | C74: 0104 | D74: 0020800 | E74: 120 | F74: 211 | J74: 506748 | K74: 506748 | L74: 0 | M74: 506748 | N74: 0 | O74: 506748 | Q74: 0
A75: Начисления на выплаты по оплате труда | B75: 002 | C75: 0104 | D75: 0020800 | E75: 120 | F75: 213 | J75: 219252 | K75: 219252 | L75: 0 | M75: 219252 | N75: 0 | O75: 219252 | P75: 100055.06 | Q75: 45.63473081
B76: 002 | C76: 0104 | D76: 0020800 | E76: 120 | F76: 213 | J76: 219252 | K76: 219252 | L76: 0 | M76: 219252 | N76: 0 | O76: 219252 | P76: 219252 | Q76: 100
A77: Обеспечение проведения выборов и референдумов | B77: 002 | C77: 0107 | D77: 0000000 | E77: 000 | F77: 000 | J77: =J78 -> 416000 | K77: =K78 -> 0 | L77: 0 | M77: 0 | N77: 0 | O77: 0 | P77: =P78 -> 200000 | Q77: 48.07692308
A78: Проведение выборов в законодательные (представительные) органы власти муниципального образования | B78: 002 | C78: 0107 | D78: 0200002 | E78: 000 | F78: 000 | J78: =J79 -> 416000 | K78: 0 | L78: 0 | M78: 0 | N78: 0 | O78: 0 | P78: 200000 | Q78: 48.07692308
A79: Специальные расходы | B79: 002 | C79: 0107 | D79: 0200002 | E79: 880 | F79: 000 | J79: =J80 -> 416000 | K79: 0 | L79: 0 | M79: 0 | N79: 0 | O79: 0 | P79: 200000 | Q79: 48.07692308
A80: Прочие расходы | B80: 002 | C80: 0107 | D80: 0200002 | E80: 880 | F80: 290 | J80: 416000 | P80: 200000 | Q80: 48.07692308
A81: Резервные фонды | B81: 002 | C81: 0111 | D81: 0000000 | E81: 000 | F81: 000 | J81: =J82 -> 84000 | K81: 500000 | L81: 0 | M81: 500000 | N81: 0 | O81: 500000 | P81: =P82 -> 0 | Q81: 0
A82: Резервные фонды местных администраций | B82: 002 | C82: 0111 | D82: 0700500 | E82: 000 | F82: 000 | J82: =J83 -> 84000 | K82: 500000 | L82: 0 | M82: 500000 | N82: 0 | O82: 500000 | P82: =P83 -> 0 | Q82: 0
A83: Резервные средства | B83: 002 | C83: 0111 | D83: 0700500 | E83: 870 | F83: 000 | J83: =J84 -> 84000 | K83: 500000 | L83: 0 | M83: 500000 | N83: 0 | O83: 500000 | P83: =P84 -> 0 | Q83: 0
A84: Прочие расходы | B84: 002 | C84: 0111 | D84: 0700500 | E84: 870 | F84: 290 | J84: 84000 | K84: 500000 | L84: 0 | M84: 500000 | N84: 0 | O84: 500000 | P84: 0 | Q84: 0
B85: 002 | C85: 0111 | D85: 0700500 | E85: 870 | F85: 290 | J85: 500000 | K85: 500000 | L85: 0 | M85: 500000 | N85: 0 | O85: 500000 | P85: 500000 | Q85: 100
A86: Другие общегосударственные вопросы | B86: 002 | C86: 0113 | D86: 0000000 | E86: 000 | F86: 000 | J86: =J90+J102+J105+J113+J87 -> 476857 | K86: =K90+K102+K105+K113+K87 -> 893857 | L86: 0 | M86: 893857 | N86: 0 | O86: 893857 | P86: 305357.64 | Q86: 64.03547395
A87: Мероприятия по созданию многофункционального центра в городе Фокино | B87: 002 | C87: 0113 | D87: 5209900 | E87: 000 | F87: 000 | J87: =J88 -> 63000 | K87: =K88 -> 0 | L87: 0 | M87: 0 | N87: 0 | O87: 0 | P87: 63000 | Q87: 100
A88: Иные закупки товаров, работ и услуг для государственных(муниципальных) нужд | B88: 002 | C88: 0113 | D88: 5209900 | E88: 240 | F88: 000 | J88: =J89 -> 63000 | K88: 0 | L88: 0 | M88: 0 | N88: 0 | O88: 0 | P88: 63000 | Q88: 100
A89: Прочие работы, услуги | B89: 002 | C89: 0113 | D89: 5209900 | E89: 240 | F89: 226 | J89: 63000 | P89: 63000 | Q89: 100
A90: Организация деятельности административных комиссий | B90: 002 | C90: 0113 | D90: 5210204 | E90: 000 | F90: 000 | J90: =J91+J96 -> 287200 | K90: 287200 | L90: 0 | M90: 287200 | N90: 0 | O90: 287200 | P90: =P91+P96 -> 133013.07 | Q90: 46.31374304
A91: Расходы на выплаты персоналу государственных (муниципальных) органов | B91: 002 | C91: 0113 | D91: 5210204 | E91: 120 | F91: 000 | J91: =J92+J94 -> 264300 | K91: 230000 | L91: 0 | M91: 230000 | N91: 0 | O91: 230000 | P91: =P92+P94 -> 122134.62 | Q91: 46.21060159
A92: Заработная плата | B92: 002 | C92: 0113 | D92: 5210204 | E92: 120 | F92: 211 | J92: =176650+24700 -> 201350 | K92: 176650 | L92: 0 | M92: 176650 | N92: 0 | O92: 176650 | P92: 92793.34 | Q92: 46.08559225
B93: 002 | C93: 0113 | D93: 5210204 | E93: 120 | F93: 211 | J93: 176650 | K93: 176650 | L93: 0 | M93: 176650 | N93: 0 | O93: 176650 | Q93: 0
A94: Начисления на выплаты по оплате труда | B94: 002 | C94: 0113 | D94: 5210204 | E94: 120 | F94: 213 | J94: =53350+9600 -> 62950 | K94: 53350 | L94: 0 | M94: 53350 | N94: 0 | O94: 53350 | P94: 29341.28 | Q94: 46.61045274
B95: 002 | C95: 0113 | D95: 5210204 | E95: 120 | F95: 213 | J95: 53350 | K95: 53350 | L95: 0 | M95: 53350 | N95: 0 | O95: 53350 | P95: 53350 | Q95: 100
A96: Иные закупки товаров, работ и услуг для государственных(муниципальных) нужд | B96: 002 | C96: 0113 | D96: 5210204 | E96: 240 | F96: 000 | J96: =J97+J99+J100+J101 -> 22900 | K96: 57200 | L96: 0 | M96: 57200 | N96: 0 | O96: 57200 | P96: =P97+P99+P100+P101 -> 10878.45 | Q96: 47.50414847
A97: Услуги связи | B97: 002 | C97: 0113 | D97: 5210204 | E97: 240 | F97: 221 | J97: 15000 | K97: 15000 | L97: 0 | M97: 15000 | N97: 0 | O97: 15000 | P97: 8241.36 | Q97: 54.9424
B98: 002 | C98: 0113 | D98: 5210204 | E98: 240 | F98: 221 | J98: 15000 | K98: 15000 | L98: 0 | M98: 15000 | N98: 0 | O98: 15000 | Q98: 0
A99: Прочие работы, услуги | B99: 002 | C99: 0113 | D99: 5210204 | E99: 240 | F99: 226 | J99: 0 | K99: 10000 | L99: 0 | M99: 10000 | N99: 0 | O99: 10000
A100: Увеличение стоимости основных средств | B100: 002 | C100: 0113 | D100: 5210204 | E100: 240 | F100: 310 | J100: 0 | K100: 15000 | L100: 0 | M100: 15000 | N100: 0 | O100: 15000
A101: Увеличение стоимости материальных запасов | B101: 002 | C101: 0113 | D101: 5210204 | E101: 240 | F101: 340 | J101: =17200-9300 -> 7900 | K101: 17200 | L101: 0 | M101: 17200 | N101: 0 | O101: 17200 | P101: 2637.09 | Q101: 33.38088608
A102: Долгосрочная целевая программа "Энергосбережение и повышение энергоэффективности в г. Фокино (2011-2020гг)" | B102: 002 | C102: 0113 | D102: 7951800 | E102: 000 | F102: 000 | J102: =J103 -> 0 | K102: 250000 | L102: 0 | M102: 250000 | N102: 0 | O102: 250000 | P102: =P103 -> 0
A103: Иные закупки товаров, работ и услуг для государственных(муниципальных) нужд | B103: 002 | C103: 0113 | D103: 7951800 | E103: 240 | F103: 000 | J103: =J104 -> 0 | K103: 250000 | L103: 0 | M103: 250000 | N103: 0 | O103: 250000 | P103: =P104 -> 0
A104: Работы, услуги по содержанию имущества | B104: 002 | C104: 0113 | D104: 7951800 | E104: 240 | F104: 225 | J104: 0 | K104: 250000 | L104: 0 | M104: 250000 | N104: 0 | O104: 250000 | P104: 0
A105: Долгосрочнаяя целевая программа "Развитие информационного обеспечения " | B105: 002 | C105: 0113 | D105: 7952200 | E105: 000 | F105: 000 | J105: =J106 -> 120000 | K105: 120000 | L105: 0 | M105: 120000 | N105: 0 | O105: 120000 | P105: =P106 -> 109344.57 | Q105: 91.120475
A106: Иные закупки товаров, работ и услуг для государственных(муниципальных) нужд | B106: 002 | C106: 0113 | D106: 7952200 | E106: 240 | F106: 000 | J106: =J107+J108+J109+J111 -> 120000 | K106: 120000 | L106: 0 | M106: 120000 | N106: 0 | O106: 120000 | P106: =P107+P108+P109+P111 -> 109344.57 | Q106: 91.120475
A107: Работы, услуги по содержанию имущества | B107: 002 | C107: 0113 | D107: 7952200 | E107: 240 | F107: 225 | J107: =58237-3000 -> 55237 | K107: 90000 | L107: 0 | M107: 90000 | N107: 0 | O107: 90000 | P107: 45003.57 | Q107: 81.4735956
A108: Прочие работы, услуги | B108: 002 | C108: 0113 | D108: 7952200 | E108: 240 | F108: 226 | J108: =30100+3000 -> 33100 | K108: 15000 | L108: 0 | M108: 15000 | N108: 0 | O108: 15000 | P108: 32760 | Q108: 98.97280967
A109: Увеличение стоимости основных средств | B109: 002 | C109: 0113 | D109: 7952200 | E109: 240 | F109: 310 | J109: 1500 | K109: 1500 | L109: 0 | M109: 1500 | N109: 0 | O109: 1500 | P109: 1418 | Q109: 94.53333333
B110: 002 | C110: 0113 | D110: 7952200 | E110: 240 | F110: 310 | J110: 1500 | K110: 1500 | L110: 0 | M110: 1500 | N110: 0 | O110: 1500 | Q110: 0
A111: Увеличение стоимости материальных запасов | B111: 002 | C111: 0113 | D111: 7952200 | E111: 240 | F111: 340 | J111: =13500+16663 -> 30163 | K111: 13500 | L111: 0 | M111: 13500 | N111: 0 | O111: 13500 | P111: 30163 | Q111: 100
B112: 002 | C112: 0113 | D112: 7952200 | E112: 240 | F112: 340 | J112: 13500 | K112: 13500 | L112: 0 | M112: 13500 | N112: 0 | O112: 13500 | P112: 13500 | Q112: 100
A113: Возмещение морального вреда по решению суда | B113: 002 | C113: 0113 | D113: 9800000 | E113: 000 | F113: 000 | J113: =J114 -> 6657 | K113: 236657 | L113: 0 | M113: 236657 | N113: 0 | O113: 236657 | P113: =P114 -> 0 | Q113: 0
A114: Исполнение судебных актов и мировых соглашений | B114: 002 | C114: 0113 | D114: 9800000 | E114: 830 | F114: 000 | J114: =J115 -> 6657 | K114: 236657 | L114: 0 | M114: 236657 | N114: 0 | O114: 236657 | P114: =P115 -> 0 | Q114: 0
A115: Прочие расходы | B115: 002 | C115: 0113 | D115: 9800000 | E115: 830 | F115: 290 | J115: 6657 | K115: 236657 | L115: 0 | M115: 236657 | N115: 0 | O115: 236657 | P115: 0 | Q115: 0
B116: 002 | C116: 0113 | D116: 9800000 | E116: 830 | F116: 290 | J116: 236657 | K116: 236657 | L116: 0 | M116: 236657 | N116: 0 | O116: 236657 | P116: 236657 | Q116: 100
A117: НАЦИОНАЛЬНАЯ ОБОРОНА | B117: 002 | C117: 0200 | D117: 0000000 | E117: 000 | F117: 000 | J117: =J118 -> 381130 | K117: 382800 | L117: 0 | M117: 382800 | N117: 0 | O117: 382800 | P117: =P118 -> 199352.84 | Q117: 52.30573295
A118: Мобилизационная и вневойсковая подготовка | B118: 002 | C118: 0203 | D118: 0000000 | E118: 000 | F118: 000 | J118: =J119 -> 381130 | K118: 382800 | L118: 0 | M118: 382800 | N118: 0 | O118: 382800 | P118: =P119 -> 199352.84 | Q118: 52.30573295
A119: Субвенции бюджетам городских округов на осуществление отдельных государственных полномочий по первичному воинскому учету на территориях, где отсутствуют военные комиссариаты | B119: 002 | C119: 0203 | D119: 0013602 | E119: 000 | F119: 000 | J119: =J120 -> 381130 | K119: 382800 | L119: 0 | M119: 382800 | N119: 0 | O119: 382800 | P119: =P120 -> 199352.84 | Q119: 52.30573295
A120: Расходы на выплаты персоналу государственных (муниципальных) органов | B120: 002 | C120: 0203 | D120: 0013602 | E120: 120 | F120: 000 | J120: =J121+J122 -> 381130 | K120: 382800 | L120: 0 | M120: 382800 | N120: 0 | O120: 382800 | P120: =P121+P122 -> 199352.84 | Q120: 52.30573295
A121: Заработная плата | B121: 002 | C121: 0203 | D121: 0013602 | E121: 120 | F121: 211 | J121: 294000 | K121: 294000 | L121: 0 | M121: 294000 | N121: 0 | O121: 294000 | P121: 161297.17 | Q121: 54.86298299
A122: Начисления на выплаты по оплате труда | B122: 002 | C122: 0203 | D122: 0013602 | E122: 120 | F122: 213 | J122: =88800-1670 -> 87130 | K122: 88800 | L122: 0 | M122: 88800 | N122: 0 | O122: 88800 | P122: 38055.67 | Q122: 43.67688511
A123: НАЦИОНАЛЬНАЯ БЕЗОПАСНОСТЬ И ПРАВООХРАНИТЕЛЬНАЯ ДЕЯТЕЛЬНОСТЬ | B123: 002 | C123: 0300 | D123: 0000000 | E123: 000 | F123: 000 | J123: =J124 -> 92835 | K123: 92835 | L123: 0 | M123: 92835 | N123: 0 | O123: 92835 | P123: =P124 -> 92831.73 | Q123: 99.99647762
A124: Защита населения и территории от чрезвычайных ситуаций природного и техногенного характера, гражданская оборона | B124: 002 | C124: 0309 | D124: 0000000 | E124: 000 | F124: 000 | J124: =J125 -> 92835 | K124: 92835 | L124: 0 | M124: 92835 | N124: 0 | O124: 92835 | P124: =P125 -> 92831.73 | Q124: 99.99647762
A125: Органы национальной безопасности и правоохранительной деятельности | B125: 002 | C125: 0309 | D125: 2026701 | E125: 000 | F125: 000 | J125: =J126+J131 -> 92835 | K125: 92835 | L125: 0 | M125: 92835 | N125: 0 | O125: 92835 | P125: =P126+P131 -> 92831.73 | Q125: 99.99647762
A126: Расходы на выплаты персоналу государственных (муниципальных) органов | B126: 002 | C126: 0309 | D126: 2026701 | E126: 120 | F126: 000 | J126: =J127+J129 -> 44656 | K126: 44656 | L126: 0 | M126: 44656 | N126: 0 | O126: 44656 | P126: =P127+P129 -> 44654.2 | Q126: 99.99596919
A127: Заработная плата | B127: 002 | C127: 0309 | D127: 2026701 | E127: 120 | F127: 211 | J127: 32584 | K127: 32584 | L127: 0 | M127: 32584 | N127: 0 | O127: 32584 | P127: 32583.19 | Q127: 99.99751412
B128: 002 | C128: 0309 | D128: 2026701 | E128: 120 | F128: 211 | J128: 32584 | K128: 32584 | L128: 0 | M128: 32584 | N128: 0 | O128: 32584 | Q128: 0
A129: Начисления на выплаты по оплате труда | B129: 002 | C129: 0309 | D129: 2026701 | E129: 120 | F129: 213 | J129: 12072 | K129: 12072 | L129: 0 | M129: 12072 | N129: 0 | O129: 12072 | P129: 12071.01 | Q129: 99.9917992
B130: 002 | C130: 0309 | D130: 2026701 | E130: 120 | F130: 213 | J130: 12072 | K130: 12072 | L130: 0 | M130: 12072 | N130: 0 | O130: 12072 | P130: 12072 | Q130: 100
A131: Иные закупки товаров, работ и услуг для государственных(муниципальных) нужд | B131: 002 | C131: 0309 | D131: 2026701 | E131: 240 | F131: 000 | J131: =J132+J134+J136+J138 -> 48179 | K131: 48179 | L131: 0 | M131: 48179 | N131: 0 | O131: 48179 | P131: =P132+P134+P136+P138 -> 48177.53 | Q131: 99.99694888
A132: Услуги связи | B132: 002 | C132: 0309 | D132: 2026701 | E132: 240 | F132: 221 | J132: 1434 | K132: 1434 | L132: 0 | M132: 1434 | N132: 0 | O132: 1434 | P132: 1433.12 | Q132: 99.93863319
B133: 002 | C133: 0309 | D133: 2026701 | E133: 240 | F133: 221 | J133: 1434 | K133: 1434 | L133: 0 | M133: 1434 | N133: 0 | O133: 1434 | Q133: =P133/J133*100 -> 0
A134: Работы, услуги по содержанию имущества | B134: 002 | C134: 0309 | D134: 2026701 | E134: 240 | F134: 225 | J134: =14608.87+0.13 -> 14609 | K134: 14608.87 | L134: 0 | M134: 14608.87 | N134: 0 | O134: 14608.87 | P134: 14608.87 | Q134: 99.99911014
B135: 002 | C135: 0309 | D135: 2026701 | E135: 240 | F135: 225 | J135: 14608.87 | K135: 14608.87 | L135: 0 | M135: 14608.87 | N135: 0 | O135: 14608.87 | Q135: 0
A136: Прочие работы, услуги | B136: 002 | C136: 0309 | D136: 2026701 | E136: 240 | F136: 226 | J136: =0.13-0.13 -> 0 | K136: 0.13 | L136: 0 | M136: 0.13 | N136: 0 | O136: 0.13
B137: 002 | C137: 0309 | D137: 2026701 | E137: 240 | F137: 226 | J137: 0.13 | K137: 0.13 | L137: 0 | M137: 0.13 | N137: 0 | O137: 0.13 | Q137: 0
A138: Увеличение стоимости материальных запасов | B138: 002 | C138: 0309 | D138: 2026701 | E138: 240 | F138: 340 | J138: 32136 | K138: 32136 | L138: 0 | M138: 32136 | N138: 0 | O138: 32136 | P138: 32135.54 | Q138: 99.99856858
B139: 002 | C139: 0309 | D139: 2026701 | E139: 240 | F139: 340 | J139: 32136 | K139: 32136 | L139: 0 | M139: 32136 | N139: 0 | O139: 32136 | P139: 32136 | Q139: 100
A140: НАЦИОНАЛЬНАЯ ЭКОНОМИКА | B140: 002 | C140: 0400 | D140: 0000000 | E140: 000 | F140: 000 | J140: =J147+J157+J177+J141 -> 21887196.5 | K140: =K147+K157+K177+K141 -> 18416000 | L140: 0 | M140: 18416000 | N140: 0 | O140: 18416000 | P140: 15441884.67 | Q140: 70.55213613
A141: Общеэкономические вопросы | B141: 002 | C141: 0401 | D141: 0000000 | E141: 000 | F141: 000 | J141: =J142+J145 -> 90545.5 | K141: =K142+K145 -> 0 | L141: 0 | M141: 0 | N141: 0 | O141: 0 | P141: 90545.23 | Q141: 99.99970181
A142: Осуществление государственных полномочий в области содействия занятости населения, включая расходы по осуществлению этих полномочий | B142: 002 | C142: 0401 | D142: 5201000 | E142: 000 | F142: 000 | J142: =J143 -> 70214.5 | K142: =K143 -> 0 | L142: 0 | M142: 0 | N142: 0 | O142: 0 | P142: 70214.5 | Q142: 100
A143: Субсидии бюджетным учреждениям на иные цели | B143: 002 | C143: 0401 | D143: 5201000 | E143: 612 | F143: 000 | J143: =J144 -> 70214.5 | K143: =K144 -> 0 | L143: 0 | M143: 0 | N143: 0 | O143: 0 | P143: 70214.5 | Q143: 100
A144: Безвозмездные перечисления государственным и муниципальным организациям | B144: 002 | C144: 0401 | D144: 5201000 | E144: 612 | F144: 241 | J144: 70214.5 | P144: 70214.5 | Q144: 100
A145: ДЦП "Профилактика безнадзорности и правонарушений несовершеннолетних" | B145: 002 | C145: 0401 | D145: 7952700 | E145: 612 | F145: 000 | J145: =J146 -> 20331 | K145: =K146 -> 0 | L145: 0 | M145: 0 | N145: 0 | O145: 0 | P145: 20330.73 | Q145: 99.99867198
A146: Субсидии бюджетным учреждениям на иные цели | B146: 002 | C146: 0401 | D146: 7952700 | E146: 612 | F146: 241 | J146: 20331 | P146: 20330.73 | Q146: 99.99867198
A147: Безвозмездные перечисления государственным и муниципальным организациям | B147: 002 | C147: 0408 | D147: 0000000 | E147: 000 | F147: 000 | J147: =J149+J153 -> 804000 | K147: 847000 | L147: 0 | M147: 847000 | N147: 0 | O147: 847000 | P147: =P149+P153 -> 282133 | Q147: 35.09116915
B148: 002 | C148: 0408 | D148: 3170100 | E148: 810 | F148: 242 | J148: 0 | K148: 0 | L148: 0 | M148: 0 | N148: 0 | O148: 0 | P148: 0
A149: Субсидии транспортным организациям на компенсацию потерь в доходах, возникающих в результате регулирования тарифов на перевозки пассажиров за счет средств областного бюджета | B149: 002 | C149: 0408 | D149: 3170110 | E149: 000 | F149: 000 | J149: =J150 -> 592000 | K149: 592000 | L149: 0 | M149: 592000 | N149: 0 | O149: 592000 | P149: =P150 -> 197333 | Q149: 33.33327703
A150: Субсидии юридическим лицам (кроме государственных(муниципальных) учреждений), индивидуальным предпринимателям и физическим лицам - производителям товаров, работ, услуг | B150: 002 | C150: 0408 | D150: 3170110 | E150: 810 | F150: 000 | J150: =J151 -> 592000 | K150: 592000 | L150: 0 | M150: 592000 | N150: 0 | O150: 592000 | P150: =P151 -> 197333 | Q150: 33.33327703
A151: Безвозмездные перечисления организациям , за исключением государственных и муниципальных | B151: 002 | C151: 0408 | D151: 3170110 | E151: 810 | F151: 242 | J151: 592000 | K151: 592000 | L151: 0 | M151: 592000 | N151: 0 | O151: 592000 | P151: 197333 | Q151: 33.33327703
B152: 002 | C152: 0408 | D152: 3170110 | E152: 810 | F152: 242 | J152: 592000 | K152: 592000 | L152: 0 | M152: 592000 | N152: 0 | O152: 592000 | P152: 592000 | Q152: 100
A153: Субсидии транспортным организациям на компенсацию потерь в доходах, возникающих в результате регулирования тарифов на перевозки пассажиров за счет средств местного бюджета | B153: 002 | C153: 0408 | D153: 3170120 | E153: 000 | F153: 000 | J153: =J154 -> 212000 | K153: 255000 | L153: 0 | M153: 255000 | N153: 0 | O153: 255000 | P153: =P154 -> 84800 | Q153: 40
A154: Субсидии юридическим лицам (кроме государственных(муниципальных) учреждений), индивидуальным предпринимателям и физическим лицам - производителям товаров, работ, услуг | B154: 002 | C154: 0408 | D154: 3170120 | E154: 810 | F154: 000 | J154: =J155 -> 212000 | K154: 255000 | L154: 0 | M154: 255000 | N154: 0 | O154: 255000 | P154: =P155 -> 84800 | Q154: 40
A155: Безвозмездные перечисления организациям , за исключением государственных и муниципальных | B155: 002 | C155: 0408 | D155: 3170120 | E155: 810 | F155: 242 | J155: =255000-43000 -> 212000 | K155: 255000 | L155: 0 | M155: 255000 | N155: 0 | O155: 255000 | P155: 84800 | Q155: 40
B156: 002 | C156: 0408 | D156: 3170120 | E156: 810 | F156: 242 | J156: 255000 | K156: 255000 | L156: 0 | M156: 255000 | N156: 0 | O156: 255000 | P156: 255000 | Q156: 100
A157: Дорожное хозяйство (дорожные фонды) | B157: 002 | C157: 0409 | D157: 0000000 | E157: 000 | F157: 000 | J157: =J161+J165+J172+J169+J158 -> 20746151 | K157: =K161+K165+K172+K169+K158 -> 17322500 | L157: 0 | M157: 17322500 | N157: 0 | O157: 17322500 | P157: 14887218 | Q157: 71.75893977
A158: Капитальный ремонт и ремонт дворовых территорий многоквартирных домов, проездов к дворовым территориям многоквартирных домов населенных пунктов | B158: 002 | C158: 0409 | D158: 3150102 | E158: 000 | F158: 000 | J158: =J159 -> 4063900 | K158: =K159 -> 0 | L158: 0 | M158: 0 | N158: 0 | O158: 0 | P158: 0 | Q158: 0
A159: Иные закупки товаров, работ и услуг для государственных(муниципальных) нужд | B159: 002 | C159: 0409 | D159: 3150102 | E159: 240 | F159: 000 | J159: =J160 -> 4063900 | K159: 0 | L159: 0 | M159: 0 | N159: 0 | O159: 0 | P159: 0 | Q159: 0
A160: Работы, услуги по содержанию имущества | B160: 002 | C160: 0409 | D160: 3150102 | E160: 240 | F160: 225 | J160: 4063900 | P160: 0 | Q160: 0
A161: Содержание автомобильных дорог общего пользования местного значения за счет средств областного бюджета | B161: 002 | C161: 0409 | D161: 3150110 | E161: 000 | F161: 000 | J161: =J162 -> 10327800 | K161: 10327800 | L161: 0 | M161: 10327800 | N161: 0 | O161: 10327800 | P161: =P162 -> 10327800 | Q161: 100
A162: Иные закупки товаров, работ и услуг для государственных(муниципальных) нужд | B162: 002 | C162: 0409 | D162: 3150110 | E162: 240 | F162: 000 | J162: =J163 -> 10327800 | K162: 10327800 | L162: 0 | M162: 10327800 | N162: 0 | O162: 10327800 | P162: =P163 -> 10327800 | Q162: 100
A163: Работы, услуги по содержанию имущества | B163: 002 | C163: 0409 | D163: 3150110 | E163: 240 | F163: 225 | J163: 10327800 | K163: 10327800 | L163: 0 | M163: 10327800 | N163: 0 | O163: 10327800 | P163: 10327800 | Q163: 100
B164: 002 | C164: 0409 | D164: 3150110 | E164: 240 | F164: 225 | J164: 10327800 | K164: 10327800 | L164: 0 | M164: 10327800 | N164: 0 | O164: 10327800 | P164: 10327800 | Q164: 100
A165: Ремонт автомобильных дорог общего пользования местного значения за счет средств областного бюджета | B165: 002 | C165: 0409 | D165: 3150120 | E165: 000 | F165: 000 | J165: =J166 -> 2164700 | K165: 2164700 | L165: 0 | M165: 2164700 | N165: 0 | O165: 2164700 | P165: =P166 -> 2164700 | Q165: 100
A166: Иные закупки товаров, работ и услуг для государственных(муниципальных) нужд | B166: 002 | C166: 0409 | D166: 3150120 | E166: 240 | F166: 000 | J166: =J167 -> 2164700 | K166: 2164700 | L166: 0 | M166: 2164700 | N166: 0 | O166: 2164700 | P166: =P167 -> 2164700 | Q166: 100
A167: Работы, услуги по содержанию имущества | B167: 002 | C167: 0409 | D167: 3150120 | E167: 240 | F167: 225 | J167: 2164700 | K167: 2164700 | L167: 0 | M167: 2164700 | N167: 0 | O167: 2164700 | P167: 2164700 | Q167: 100
B168: 002 | C168: 0409 | D168: 3150120 | E168: 240 | F168: 225 | J168: 2164700 | K168: 2164700 | L168: 0 | M168: 2164700 | N168: 0 | O168: 2164700 | P168: 2164700 | Q168: 100
A169: Мероприятия по реализации Федерального закона от 9 февраля 2007 года N 16-ФЗ "О транспортно йбезопасности" в сфере дорожного хозяйства | B169: 002 | C169: 0409 | D169: 3150302 | E169: 000 | F169: 000 | J169: =J170 -> 68052 | K169: =K170 -> 0 | L169: 0 | M169: 0 | N169: 0 | O169: 0 | P169: 68052 | Q169: 100
A170: Иные закупки товаров, работ и услуг для государственных (муниципальных) нужд | B170: 002 | C170: 0409 | D170: 3150302 | E170: 240 | F170: 000 | J170: =J171 -> 68052 | K170: 0 | L170: 0 | M170: 0 | N170: 0 | O170: 0 | P170: 68052 | Q170: 100
A171: Прочие работы, услуги | B171: 002 | C171: 0409 | D171: 3150302 | E171: 240 | F171: 226 | J171: 68052 | P171: 68052 | Q171: 100
A172: Содерж автомобильных дорог и инженерных сооружений на них в границах городских округов в рамках благоустройства | B172: 002 | C172: 0409 | D172: 6000200 | E172: 000 | F172: 000 | J172: =J173 -> 4121699 | K172: 4830000 | L172: 0 | M172: 4830000 | N172: 0 | O172: 4830000 | P172: =P173 -> 2326666 | Q172: 56.44919728
A173: Иные закупки товаров, работ и услуг для государственных(муниципальных) нужд | B173: 002 | C173: 0409 | D173: 6000200 | E173: 240 | F173: 000 | J173: =J174+J176 -> 4121699 | K173: =K174+K176 -> 4830000 | L173: 0 | M173: 4830000 | N173: 0 | O173: 4830000 | P173: 2326666 | Q173: 56.44919728
A174: Работы, услуги по содержанию имущества | B174: 002 | C174: 0409 | D174: 6000200 | E174: 240 | F174: 225 | J174: =4830000-304754-182633-99781-123233 -> 4119599 | K174: 4830000 | L174: 0 | M174: 4830000 | N174: 0 | O174: 4830000 | P174: 2324566 | Q174: 56.4269969
B175: 002 | C175: 0409 | D175: 6000200 | E175: 240 | F175: 225 | J175: 4830000 | K175: 4830000 | L175: 0 | M175: 4830000 | N175: 0 | O175: 4830000 | Q175: 0
A176: Увеличение стоимости материальных запасов | B176: 002 | C176: 0409 | D176: 6000200 | E176: 240 | F176: 340 | J176: 2100 | P176: 2100 | Q176: 100
A177: Другие вопросы в области национальной экономики | B177: 002 | C177: 0412 | D177: 0000000 | E177: 000 | F177: 000 | J177: =J178+J184+J188 -> 246500 | K177: 246500 | L177: 0 | M177: 246500 | N177: 0 | O177: 246500 | P177: =P178+P184+P188 -> 181988.44 | Q177: 73.82898174
A178: Осуществление отдельных государственных полномочий Брянской области в области охраны труда | B178: 002 | C178: 0412 | D178: 5210222 | E178: 000 | F178: 000 | J178: =J179 -> 143500 | K178: 143500 | L178: 0 | M178: 143500 | N178: 0 | O178: 143500 | P178: =P179 -> 81988.44 | Q178: 57.13480139
A179: Расходы на выплаты персоналу государственных (муниципальных) органов | B179: 002 | C179: 0412 | D179: 5210222 | E179: 120 | F179: 000 | J179: =J180+J182 -> 143500 | K179: 143500 | L179: 0 | M179: 143500 | N179: 0 | O179: 143500 | P179: =P180+P182 -> 81988.44 | Q179: 57.13480139
A180: Заработная плата | B180: 002 | C180: 0412 | D180: 5210222 | E180: 120 | F180: 211 | J180: 110215 | K180: 110215 | L180: 0 | M180: 110215 | N180: 0 | O180: 110215 | P180: 62468.98 | Q180: 56.67919975
B181: 002 | C181: 0412 | D181: 5210222 | E181: 120 | F181: 211 | J181: 110215 | K181: 110215 | L181: 0 | M181: 110215 | N181: 0 | O181: 110215 | Q181: 0
A182: Начисления на выплаты по оплате труда | B182: 002 | C182: 0412 | D182: 5210222 | E182: 120 | F182: 213 | J182: 33285 | K182: 33285 | L182: 0 | M182: 33285 | N182: 0 | O182: 33285 | P182: 19519.46 | Q182: 58.64341295
B183: 002 | C183: 0412 | D183: 5210222 | E183: 120 | F183: 213 | J183: 33285 | K183: 33285 | L183: 0 | M183: 33285 | N183: 0 | O183: 33285 | P183: 33285 | Q183: 100
A184: ДЦП "Поддержка малого и среднего предпринимательства в городе Фокино на 2012-2014гг" | B184: 002 | C184: 0412 | D184: 7951900 | E184: 000 | F184: 000 | J184: =J185 -> 3000 | K184: 3000 | L184: 0 | M184: 3000 | N184: 0 | O184: 3000 | P184: =P185 -> 0 | Q184: 0
A185: Иные закупки товаров, работ и услуг для государственных(муниципальных) нужд | B185: 002 | C185: 0412 | D185: 7951900 | E185: 240 | F185: 000 | J185: =J186 -> 3000 | K185: 3000 | L185: 0 | M185: 3000 | N185: 0 | O185: 3000 | P185: =P186 -> 0 | Q185: 0
A186: Увеличение стоимости материальных запасов | B186: 002 | C186: 0412 | D186: 7951900 | E186: 240 | F186: 340 | J186: 3000 | K186: 3000 | L186: 0 | M186: 3000 | N186: 0 | O186: 3000 | P186: 0 | Q186: 0
B187: 002 | C187: 0412 | D187: 7951900 | E187: 240 | F187: 340 | J187: 3000 | K187: 3000 | L187: 0 | M187: 3000 | N187: 0 | O187: 3000 | P187: 3000 | Q187: 100
A188: Долгосрочная целевая программа "Реформирование земельных, имущественных отношений и градостроительства ( 2012-2014 гг)" | B188: 002 | C188: 0412 | D188: 7952300 | E188: 000 | F188: 000 | J188: =J189 -> 100000 | K188: 100000 | L188: 0 | M188: 100000 | N188: 0 | O188: 100000 | P188: =P189 -> 100000 | Q188: 100
A189: Иные закупки товаров, работ и услуг для государственных(муниципальных) нужд | B189: 002 | C189: 0412 | D189: 7952300 | E189: 240 | F189: 000 | J189: =J190 -> 100000 | K189: 100000 | L189: 0 | M189: 100000 | N189: 0 | O189: 100000 | P189: =P190 -> 100000 | Q189: 100
A190: Прочие работы, услуги | B190: 002 | C190: 0412 | D190: 7952300 | E190: 240 | F190: 226 | J190: 100000 | K190: 100000 | L190: 0 | M190: 100000 | N190: 0 | O190: 100000 | P190: 100000 | Q190: 100
B191: 002 | C191: 0412 | D191: 7952300 | E191: 240 | F191: 226 | J191: 100000 | K191: 100000 | L191: 0 | M191: 100000 | N191: 0 | O191: 100000 | P191: 100000 | Q191: 100
A192: ЖИЛИЩНО-КОММУНАЛЬНОЕ ХОЗЯЙСТВО | B192: 002 | C192: 0500 | D192: 0000000 | E192: 000 | F192: 000 | J192: =J193+J213 -> 4962676.95 | K192: 3489800 | L192: 0 | M192: 3489800 | N192: 0 | O192: 3489800 | P192: =P193+P213 -> 3305247.8 | Q192: 66.60211481
A193: Коммунальное хозяйство | B193: 002 | C193: 0502 | D193: 0000000 | E193: 000 | F193: 000 | J193: =J194+J201+J209+J206 -> 2443095.95 | K193: =K194+K201+K209+K206 -> 1070000 | L193: 0 | M193: 1070000 | N193: 0 | O193: 1070000 | P193: 1803621.8 | Q193: 73.82525439
A194: Мероприятия в области коммунального хозяйства | B194: 002 | C194: 0502 | D194: 3510500 | E194: 000 | F194: 000 | J194: =J198+J195 -> 1701193.95 | K194: =K198+K195 -> 800000 | L194: 0 | M194: 800000 | N194: 0 | O194: 800000 | P194: 1551720 | Q194: 91.21358561
A195: Иные закупки товаров, работ и услуг для государственных(муниципальных) нужд | B195: 002 | C195: 0502 | D195: 3510500 | E195: 240 | F195: 000 | J195: =J196+J197 -> 652287 | K195: =K196+K197 -> 0 | L195: 0 | M195: 0 | N195: 0 | O195: 0 | P195: 577133 | Q195: 88.47838451
A196: Работы, услуги по содержанию имущества | B196: 002 | C196: 0502 | D196: 3510500 | E196: 240 | F196: 225 | J196: =651287-21500 -> 629787 | P196: 554633 | Q196: 88.06675908
A197: Прочие работы, услуги | B197: 002 | C197: 0502 | D197: 3510500 | E197: 240 | F197: 226 | J197: =1000+21500 -> 22500 | P197: 22500 | Q197: =P197/J197*100 -> 100
A198: Субсидии юридическим лицам (кроме государственных(муниципальных) учреждений), индивидуальным предпринимателям и физическим лицам - производителям товаров, работ, услуг | B198: 002 | C198: 0502 | D198: 3510500 | E198: 810 | F198: 000 | J198: =J199 -> 1048906.95 | K198: 800000 | L198: 0 | M198: 800000 | N198: 0 | O198: 800000 | P198: =P199 -> 974587 | Q198: 92.91453355
A199: Безвозмездные перечисления государственным и муниципальным организациям | B199: 002 | C199: 0502 | D199: 3510500 | E199: 810 | F199: 241 | J199: =800000+248906.95 -> 1048906.95 | K199: 800000 | L199: 0 | M199: 800000 | N199: 0 | O199: 800000 | P199: 974587 | Q199: 92.91453355
B200: 002 | C200: 0502 | D200: 3510500 | E200: 810 | F200: 241 | J200: 800000 | K200: 800000 | L200: 0 | M200: 800000 | N200: 0 | O200: 800000 | P200: 800000 | Q200: 100
... 373 more rows
